Cogmind - Beta 13 @@@ ROGUE MODE // 2024.04.21 @ 13:10:12 Player: TheBermanGrit Result: Self-destructed Performance ------------- Evolutions (1) 500 Regions Visited (2) 400 Robots Destroyed (8) 40 Value Destroyed (238) 238 Prototype IDs (0) 0 Alien Tech Used (0) 0 Bonus (0) 0 TOTAL SCORE: 1178 Bonus ------- None Cogmind --------- Core Integrity 377/400 Matter 254/300 Energy 159/160 System Corruption 0% Temperature Cool (0) Movement Hovering (116) Ox1 Location -9/Materials Parts ------- > --- POWER (2) -------- Light Nuclear Core > --- PROPULSION (2) --- Improved Hover Unit Improved Hover Unit > --- UTILITY (2) ------ Cooling System Small Storage Unit > --- WEAPON (3) ------- Beam Rifle Light Cannon > --- INVENTORY (8) ---- Reinforced Ion Engine Improved Hover Unit Improved Hover Unit Improved Hover Unit Improved Hover Unit ECM Suite Medium Armor Plating Peak State ------------ > --- POWER ------------ Reinforced Ion Engine Light Nuclear Core > --- PROPULSION ------- Improved Hover Unit Improved Hover Unit > --- UTILITY ---------- Small Storage Unit Medium Armor Plating > --- WEAPON ----------- Beam Rifle Particle Gun Light Cannon > --- INVENTORY -------- Reinforced Ion Engine Reinforced Ion Engine Cooling System ECM Suite ECM Suite Medium Armor Plating Medium Armor Plating [Rating: 18] Favorites ----------- Power Reinforced Ion Engine Engine Reinforced Ion Engine Power Core Light Nuclear Core Propulsion Light Treads Treads Light Treads Leg Aluminum Leg Hover Unit Improved Hover Unit Utility Small Storage Unit Device Cooling System Storage Small Storage Unit Protection Medium Armor Plating Weapon Assault Rifle Energy Gun Particle Gun Ballistic Gun Assault Rifle Ballistic Cannon Light Cannon Build | -11 -10 -9 ------- Run | Yrd Mat Mat Slots Evolved 2 | . . 2 Power 1 | . . 1 Propulsion . | . . . Utility . | . . . Weapon 1 | . . 1 Parts Attached 22 | 9 8 5 Power 4 | 2 1 1 Engine 3 | 2 1 . Core 1 | . . 1 Reactor . | . . . Propulsion 8 | 4 2 2 Treads 4 | 2 2 . Leg 2 | 2 . . Wheel . | . . . Hover 2 | . . 2 Flight . | . . . Utility 5 | 1 3 1 Device 2 | . 1 1 Storage 1 | 1 . . Processor . | . . . Hackware . | . . . Protection 2 | . 2 . Artifact . | . . . Weapon 5 | 2 2 1 Energy Gun 3 | 1 1 1 Energy Cannon . | . . . Ballistic Gun 1 | 1 . . Ballistic Cannon 1 | . 1 . Launcher . | . . . Special Weapon . | . . . Impact Weapon . | . . . Slashing Weapon . | . . . Piercing Weapon . | . . . Special Melee Weapon . | . . . Unidentified Prototypes . | . . . Parts Lost . | . . . Power . | . . . Propulsion . | . . . Utility . | . . . Weapon . | . . . Highest Loss Streak . | . . . To Critical Strikes . | . . . Average Slot Usage (%) 98 | . 99 98 Engine 13 | . 14 11 Core 3 | . . 11 Treads 23 | . 26 16 Hover 1 | . . 5 Device 1 | . 1 1 Storage 13 | . 14 11 Protection 11 | . 11 9 Energy Gun 16 | . 14 20 Ballistic Gun 7 | . 10 . Ballistic Cannon 5 | . 3 11 Naked Turns . | . . . Heaviest Build 36 | 14 28 36 Greatest Support 40 | 40 40 40 Greatest Overweight (x) 5 | . . 5 Average Overweight (x) . | . . . Largest Inventory Capacity 8 | 8 8 8 Average Capacity 7 | 7 8 8 Most Carried 8 | 3 8 8 Average Carried 6 | 1 7 7 Final Capacity 8 | 8 8 8 Final Carried 8 | 3 8 7 Class Distribution -------------------- 83% | Mutant 16% | Tank Dominant Class ---------------- Mutant | -10/Materials Tank | -9/Materials Resources | -11 -10 -9 ----------- Run | Yrd Mat Mat Matter Collected 501 | 205 186 110 Remotely . | . . . Salvage Created 362 | . 84 278 Parts 15 | . 5 10 Haulers Intercepted 1 | . . 1 Recyclers Shooed 1 | . . 1 Parts Field Recycled . | . . . Retrieved Matter . | . . . Parts Self-Destructed . | . . . Prevented . | . . . Kills | -11 -10 -9 ------- Run | Yrd Mat Mat Combat Hostiles Destroyed 6 | . 2 4 Guns 4 | . 2 2 Cannons 2 | . . 2 Classes Destroyed 5 | . 1 4 Hauler 1 | . . 1 Recycler 1 | . . 1 Grunt 4 | . 2 2 Brawler 1 | . . 1 Sentry 1 | . . 1 Best Kill Streak 2 | . 2 2 Combat Bots Only 2 | . 2 2 Max Kills in Single Turn 1 | . 1 1 Gunslinging . | . . . Exploded . | . . . Melee . | . . . Uniques/NPCs Destroyed . | . . . Combat | -11 -10 -9 -------- Run | Yrd Mat Mat Hostile Shots Fired 28 | . 14 14 Missed 6 | . 1 5 Damage Taken 288 | . 175 113 Core 51 | . 28 23 Absorbed by Shields . | . . . Core Remaining (%) 94 | 100 88 . Volleys Fired 21 | . 7 14 Largest 3 | . 2 3 Hottest 156 | . 70 156 Shots Fired 48 | . 14 34 Gun 38 | . 14 24 Cannon 10 | . . 10 Launcher . | . . . Special . | . . . Kinetic 17 | . 7 10 Thermal 31 | . 7 24 Explosive . | . . . Electromagnetic . | . . . Robot Hit Streak 17 | . 5 17 Robot Miss Streak 3 | . 3 3 Penetration Max . | . . . Secondary Targets 1 | . 1 . Max Gunslinging Chain 1 | . 1 . Shots Hit Robots 36 | . 9 27 Core Hits 16 | . 5 11 Critical Kills . | . . . Critical Parts Destroyed . | . . . Critical Strikes 2 | . . 2 Burn 2 | . . 2 Melee Attacks . | . . . Impact . | . . . Slashing . | . . . Piercing . | . . . Sneak Attacks . | . . . Combat Hostiles . | . . . Follow-up Attacks . | . . . Damage Inflicted 568 | . 115 453 Guns 417 | . 115 302 Cannons 151 | . . 151 Explosions . | . . . Melee . | . . . Ramming . | . . . Kinetic 203 | . 52 151 Thermal 365 | . 63 302 Explosive . | . . . Electromagnetic . | . . . Impact . | . . . Slashing . | . . . Piercing . | . . . Highest Corruption . | . . . Average Corruption . | . . . Corruption Purged . | . . . Corruption Blocked . | . . . Overload Shots . | . . . Overflow Damage . | . . . Projectiles . | . . . Explosions . | . . . Melee . | . . . Knockbacks . | . . . Impact . | . . . Kinetic . | . . . Secondary . | . . . Self-Inflicted Damage . | . . . Shots . | . . . Rammed . | . . . Targets Rammed . | . . . Kicked . | . . . Crushed . | . . . Highest Temperature 509 | . 306 509 Average Temperature 221 | . 153 241 Received Heat Transfer 168 | . 96 72 Effects 7 | . . 7 Shutdowns 2 | . . 2 Energy Bleed 1 | . . 1 Interference 1 | . . 1 Matter Decay 1 | . . 1 Short Circuit 1 | . . 1 Damage (major) 1 | . . 1 Siege Activations . | . . . Robots Corrupted . | . . . Combat Hostiles . | . . . Parts Fried . | . . . Impact Corruptions . | . . . Robots Melted . | . . . Combat Hostiles . | . . . Parts Melted . | . . . Heat Transferred 1073 | . 185 888 Parts Sabotaged . | . . . Parts Stolen . | . . . Parts Stripped . | . . . Power Chain Reactions . | . . . Alert | -11 -10 -9 ------- Run | Yrd Mat Mat Peak Influence 123 | . 50 123 Initial . | . . . Average 29 | . 28 46 Maximum Alert Level . | . . . Low Security (%) 100 | 100 100 100 Level 1 . | . . . Level 2 . | . . . Level 3 . | . . . Level 4 . | . . . Level 5 . | . . . High Security . | . . . Max Security . | . . . Squads Dispatched 1 | . . 1 Investigation . | . . . Extermination . | . . . Reinforcement 1 | . . 1 Assault . | . . . Garrison . | . . . Intercept . | . . . Searches Triggered . | . . . Construction Impeded . | . . . Haulers Reinforced . | . . . Active Scanning Responses . | . . . Cargo Convoy Interrupts . | . . . Stealth | -11 -10 -9 --------- Run | Yrd Mat Mat Distress Signals 2 | . . 2 Communications Jammed . | . . . Distress Signals . | . . . Times Spotted 9 | . 4 5 Peak Tracking Total 3 | . 3 3 Tactical Retreats . | . . . Traps | -11 -10 -9 ------- Run | Yrd Mat Mat Traps Triggered . | . . . Indirectly . | . . . Trap Hack Attempts . | . . . Triggered . | . . . Disarmed . | . . . Reprogrammed . | . . . Reused . | . . . Traps Extracted . | . . . Installed . | . . . Triggered . | . . . Machines | -11 -10 -9 ---------- Run | Yrd Mat Mat Machines Disabled . | . . . Max in Single Turn . | . . . Machines Repaired . | . . . Machines Dismantled . | . . . Machines Sabotaged . | . . . Overloaded Fab Kills . | . . . Hacking | -11 -10 -9 --------- Run | Yrd Mat Mat Machines Accessed 5 | . 5 . Terminals 4 | . 4 . Fabricators . | . . . Repair Stations . | . . . Recycling Units 1 | . 1 . Scanalyzers . | . . . Garrison Access . | . . . Total Hacks 10 | . 10 . Successful 4 | . 4 . Failed 6 | . 6 . Catastrophic 3 | . 3 . Database Lockouts . | . . . Manual 4 | . 4 . Terminals 8 | . 8 . Fabricators . | . . . Repair Stations . | . . . Recycling Units 2 | . 2 . Scanalyzers . | . . . Garrison Access . | . . . Terminal Hacks 3 | . 3 . Alert Level 1 | . 1 . Unreport Threat 2 | . 2 . Fabricator Hacks . | . . . Repair Station Hacks . | . . . Recycling Unit Hacks 1 | . 1 . Retrieve Matter 1 | . 1 . Scanalyzer . | . . . Garrison Access Hacks . | . . . Unauthorized Hacks . | . . . Terminals . | . . . Fabricators . | . . . Repair Stations . | . . . Recycling Units . | . . . Scanalyzers . | . . . Garrison Access . | . . . Data Cores Recovered . | . . . Used . | . . . Hacking Detections 3 | . 3 . Full Trace Events 1 | . 1 . Feedback Events . | . . . Feedback Blocked . | . . . Robot Schematics Acquired . | . . . Robots Built . | . . . Authchips . | . . . Time . | . . . Total Robot Build Rating . | . . . Part Schematics Acquired . | . . . Parts Built . | . . . Authchips . | . . . Time . | . . . Total Part Build Rating . | . . . Parts Repaired . | . . . Time . | . . . Parts Recycled . | . . . Recycled Matter . | . . . Retrieved Matter . | . . . Retrieved Components . | . . . Parts Scanalyzed . | . . . Part Schematics Acquired . | . . . Parts Damaged . | . . . Bothacking | -11 -10 -9 ------------ Run | Yrd Mat Mat Used RIF Installer . | . . . Robots Hacked . | . . . Non-combat . | . . . Combat . | . . . Robot Hacks Applied . | . . . Relay Couplers Released . | . . . Fabnet Peak Effective % . | . . . Robots Rewired . | . . . Allies Hacked . | . . . Hacks Repelled . | . . . Allies | -11 -10 -9 -------- Run | Yrd Mat Mat Total Allies . | . . . Largest Group . | . . . Highest-Rated Group . | . . . Highest-Rated Ally . | . . . Total Orders . | . . . Ally Attacks . | . . . Total Damage . | . . . Kills . | . . . Allies Corrupted . | . . . Allies Melted . | . . . Intel | -11 -10 -9 ------- Run | Yrd Mat Mat Robot Analysis Total . | . . . Derelict Logs Recovered . | . . . Drone Launches . | . . . Drone Recoveries . | . . . Exploration | -11 -10 -9 ------------- Run | Yrd Mat Mat Turns Passed 531 | 65 315 151 Spaces Moved 257 | 38 170 49 Core 4 | 4 . . Treads 224 | 18 164 42 Legs 22 | 16 6 . Wheels . | . . . Hover 7 | . . 7 Flight . | . . . Fastest Speed 50 | 50 120 160 Average Speed 161 | 131 158 193 Slowest Speed 360 | 160 160 360 Overloaded Moves . | . . . Propulsion Burnouts . | . . . Robots Hopped . | . . . Cave-ins Triggered . | . . . Exploration Rate (%) 15 | 4 33 8 Regions Visited 2 Branch Regions . Pre-discovered Areas . | . . . Known Exits Taken . | . . . Unknown Exits Taken 2 | 1 1 . Scrap Searched . | . . . Spaces Dug . | . . . Terrain Destroyed . | . . . Melee . | . . . Projectile . | . . . AOE . | . . . Terrain Rammed . | . . . Walls Destroyed . | . . . Machines Disabled . | . . . Actions | -11 -10 -9 --------- Run | Yrd Mat Mat Total 330 | 48 202 80 Wait . | . . . Move 255 | 37 169 49 Hop . | . . . Pick Up 16 | 2 10 4 Fast Attach 12 | 6 3 3 Attach 1 | . . 1 Detach . | . . . Swap 9 | 3 5 1 Drop 16 | . 8 8 Fire 21 | . 7 14 Melee . | . . . Ram . | . . . Kick . | . . . Crush . | . . . Escape Stasis . | . . . Rewire . | . . . Trap . | . . . Miscellaneous . | . . . Route ------- -11/Scrapyard -10/Materials -9/Materials History --------- Turn | Location | Event 42 | -11/Scrapyard | Discovered new exit (range 16) 66 | -11/Scrapyard | Entered Materials 307 | -10/Materials | Build established: Mutant 373 | -10/Materials | Discovered new exit (range 3) 381 | -10/Materials | Entered another Materials area 381 | -9/Materials | Evolved 2 slots: Power x1, Weapon x1 532 | -9/Materials | Self-destructed Last Messages --------------- 00518_ Power failure, Rnf. Ion Engine shutdown. 00518_ K-01 Serf collects debris. 00520_ Acquired Imp. Hover Unit. 00520_ K-01 Serf collects debris. 00521_ Dropped Med. Armor Plating. 00521_ K-01 Serf collects debris. 00523_ Acquired Imp. Hover Unit. 00524_ Dropped Med. Armor Plating. 00525_ K-01 Serf collects debris. 00526_ Acquired Imp. Hover Unit. 00528_ K-01 Serf collects debris. 00529_ Dropped ECM Suite. 00529_ K-01 Serf collects debris. 00529_ Acquired Imp. Hover Unit. 00530_ K-01 Serf collects debris. 00530_ Dropped Rnf. Ion Engine. 00531_ K-01 Serf collects debris. 00531_ Dropped Particle Gun. 00531_ Dropped Rnf. Ion Engine. 00532_ K-01 Serf collects debris. Map ----- +----------------------------------------------------+ | ?????????????????????????????????????????????????? | | ?????????????????????????????????????????????????? | | ?????????????????????????????????????????????????? | | ?????????????????????????????????????????????????? | | ?????????????????????????????????????????????????? | | ?????????????????????????????????????????????????? | | ?????????????????????????????????????????????????? | | ?????????????????????????????????????????????????? | | ?????????????????????????????????????????????????? | | ?????????????????????????????????????????????????? | | ?????????????????????????????????????????????????? | | ?????????????????????????????????????????????????? | | ?????????????????????????????????????????????????? | | ??????????????????? ????????????????????????????? | | ??????????????????? ???"T???????????????????????? | | ??????????????????##+##?""???????????????????????? | | ??????????????????# ^?%*???????????????????????? | | ????????????????### #+#???????????????????????? | | ?????????????????=%% =[##########??????????????? | | ??????????????????# k [! ???????????????? | | ??????????????????# u ?????????????????? | | ??????????????????# !== #??????????????????? | | ??????????????????# % !== #??????????????????? | | ??????????????????# !== #??????????????????? | | ??????????????????# ! %* #??????????????????? | | ??????????????????# !u%@! #??????????????????? | | ??????????????????# ![ #??????????????????? | | ??????????????????# =!= ###########????????? | | ??????????????????# """ # #????????? | | ??????????????????# """ # ! """ #????????? | | ??????????????????# """k k # """ #????????? | | ??????????????????# % # """ #????????? | | ??????????????????# ! # " """ #????????? | | ??????????????????# % # T """ #????????? | | ??????????????????# # " #????????? | | ??????????????????# # #????????? | | ??????????????????# ]] ######+####????????? | | ?????????????? ]] #????????? | | ????????????? "Y" #????????? | | ?????????????? """ k #????????? | | ??????????????#+######+######+######+########????? | | ???????????????????????????????????# #????? | | ???????????????????????????????????# "" #????? | | ???????????????????????????????????# ""S #????? | | ???????????????????????????????????# "" #????? | | ???????????????????????????????????# #????? | | ???????????????????????????????????# """ #????? | | ???????????????????????????????????# """ #????? | | ???????????????????????????????????# """ #????? | | ???????????????????????????????????# ??????? | +----------------------------------------------------+ Best States ------------- Heat Dissipation 50 Energy Generation 21 Energy Capacity 325 Matter Stores 300 Matter Capacity 300 Sight Range 16 Terrain Scan Density 10 Armor Coverage 225 Evasion (%) 55 Recoil Reduction 2 Item Schematics ----------------- None Robot Schematics ------------------ None Fabricated ------------ Nothing Alien Tech Used ----------------- None Achievements -------------- None Challenges ------------ None Game ------ Seed BlastMetaMegatreads Manual? 0 Play Time 00:10:25 Cumulative 14.6 hours Start 2024.04.21 @ 13:00:25 End 2024.04.21 @ 13:10:12 Sessions 1 Manual Loads 0 Difficulty Rogue Special Mode None Game No. 27 Rogue 27 Adventurer 0 Explorer 0 Win Type - Total 0 Types 0/0/0/0/0/0/0/0/0 Lore% 17 Gallery% 19 Achievement% 14 Wizard Run 0 Options --------- Layout 1 ASCII 0 Keyboard 0 Movement Arrows Keybinds 0 Fullscreen 1 Font 24/Smallcaps Map View 50x35 Zoom Use 0% Tactical HUD 1 Map Filters NONE Filters NONE Steam 1 RUN: 8783fabb-a110-4adf-8c3b-7848608b18ff